[Event "23rd ETCC Women 2021"]
[Site "Catez"]
[Date "2021.11.19"]
[Round "6.6"]
[White "Javakhishvili, Lela"]
[Black "Cyfka, Karina"]
[Result "1-0"]
[ECO "E11"]
[WhiteElo "2446"]
[BlackElo "2416"]
[Annotator "ChessBase"]
[PlyCount "147"]
[EventDate "2021.11.08"]
[EventType "team-tourn"]
[EventCountry "SLO"]
[WhiteTeam "Georgia"]
[BlackTeam "Poland"]
[WhiteTeamCountry "GEO"]
[BlackTeamCountry "POL"]
[TimeControl "40/5400+30:1800+30"]

1. d4 {[%emt 0:00:03]} Nf6 {[%emt 0:00:11]} 2. c4 {[%emt 0:00:05]} e6 {[%emt 0:
00:14]} 3. Nf3 {[%emt 0:01:06]} d5 {[%emt 0:00:35]} 4. g3 {[%emt 0:01:46]} Bb4+
{[%emt 0:02:32]} 5. Bd2 {[%emt 0:00:19]} a5 {[%emt 0:01:04]} 6. Qc2 {[%emt 0:
00:51]} O-O {[%emt 0:01:12]} 7. Bg2 {[%emt 0:00:12]} c5 {[%emt 0:01:39]} 8.
dxc5 {[%emt 0:00:10]} d4 {[%emt 0:01:11]} 9. Bxb4 {[%emt 0:01:29]} axb4 {
[%emt 0:00:11]} 10. Ne5 {[%emt 0:00:07]} Qc7 {[%emt 0:08:24]} 11. Nd3 {[%emt 0:
00:14]} Na6 {[%emt 0:02:07]} 12. O-O {[%emt 0:07:25]} Nd7 {[%emt 0:06:46]} 13.
Nd2 {[%emt 0:07:38]} Ndxc5 {[%emt 0:02:39]} 14. Nb3 {[%emt 0:05:53]} Nxd3 {
[%emt 0:10:03]} 15. exd3 {[%emt 0:02:19]} Rd8 {[%emt 0:02:39]} 16. c5 {[%emt 0:
02:21]} Bd7 {[%emt 0:18:29]} 17. a3 {[%emt 0:14:40]} bxa3 {[%emt 0:13:21]} 18.
Rxa3 {[%emt 0:03:12]} Bc6 {[%emt 0:00:31]} 19. Bxc6 {[%emt 0:06:59]} Qxc6 {
[%emt 0:00:08]} 20. Rc1 {[%emt 0:00:58]} Rac8 {[%emt 0:02:55]} 21. Qc4 {
[%emt 0:00:58]} e5 {[%emt 0:08:01]} 22. Na5 {[%emt 0:03:04]} Qxc5 {[%emt 0:02:
25]} 23. Nxb7 {[%emt 0:05:33]} Qf8 {[%emt 0:00:17]} 24. Nxd8 {[%emt 0:00:30]}
Rxc4 {[%emt 0:00:04]} 25. Rxc4 {[%emt 0:00:55]} Qxd8 {[%emt 0:00:40]} 26. Rxa6
{[%emt 0:00:06]} h5 {[%emt 0:00:04]} 27. Ra7 {[%emt 0:08:28]} e4 {[%emt 0:03:
56]} 28. Raa4 {[%emt 0:01:47]} exd3 {[%emt 0:02:34]} 29. Rxd4 {[%emt 0:00:14]}
Qc8 {[%emt 0:06:56]} 30. Rac4 {[%emt 0:02:05]} Qa6 {[%emt 0:01:34]} 31. Rd8+ {
[%emt 0:08:31]} Kh7 {[%emt 0:00:01]} 32. b3 {[%emt 0:00:29]} Qa1+ {[%emt 0:00:
45]} 33. Kg2 {[%emt 0:00:05]} Qd1 {[%emt 0:00:54]} 34. b4 {[%emt 0:03:37]} Qb3
{[%emt 0:00:55]} 35. Rcd4 {[%emt 0:00:09]} d2 {[%emt 0:00:54]} 36. R8d5 {
[%emt 0:00:17]} d1=Q {[%emt 0:00:57]} 37. Rxd1 {[%emt 0:00:06]} Qxb4 {[%emt 0:
00:34]} 38. Rxh5+ {[%emt 0:00:12]} Kg6 {[%emt 0:00:01]} 39. Rhd5 {[%emt 0:00:
24]} Qe4+ {[%emt 0:00:07]} 40. Kg1 {[%emt 0:00:08]} f6 {[%emt 0:00:18]} 41.
R1d4 {[%emt 0:31:25]} Qb1+ {[%emt 0:02:58]} 42. Kg2 {[%emt 0:00:00]} Qb7 {
[%emt 0:00:08]} 43. h3 {[%emt 0:00:00]} Qa8 {[%emt 0:01:14]} 44. Kh2 {[%emt 0:
00:00]} Qa2 {[%emt 0:00:24]} 45. Rd2 {[%emt 0:00:00]} Qc4 {[%emt 0:02:33]} 46.
R5d4 {[%emt 0:00:00]} Qc5 {[%emt 0:00:39]} 47. Rf4 {[%emt 0:00:00]} Qc6 {
[%emt 0:00:17]} 48. Rg4+ {[%emt 0:00:00]} Kh7 {[%emt 0:00:47]} 49. Rh4+ {
[%emt 0:00:00]} Kg6 {[%emt 0:01:17]} 50. Rdd4 {[%emt 0:00:00]} Qc2 {[%emt 0:00:
50]} 51. Rhf4 {[%emt 0:00:00]} Qc6 {[%emt 0:01:03]} 52. Rc4 {[%emt 0:00:00]}
Qb7 {[%emt 0:01:03]} 53. Rg4+ {[%emt 0:00:00]} Kh7 {[%emt 0:01:15]} 54. Rh4+ {
[%emt 0:00:00]} Kg8 {[%emt 0:00:43]} 55. Rc2 {[%emt 0:00:00]} Qd7 {[%emt 0:01:
29]} 56. Rhc4 {[%emt 0:00:00]} Kh7 {[%emt 0:00:51]} 57. Rc7 {[%emt 0:00:00]}
Qd4 {[%emt 0:02:40]} 58. Re7 {[%emt 0:00:00]} Kh6 {[%emt 0:00:16]} 59. h4 {
[%emt 0:00:00]} f5 {[%emt 0:03:26]} 60. Rf7 {[%emt 0:00:00]} g6 {[%emt 0:01:02]
} 61. Ra2 {[%emt 0:00:00]} Qc5 {[%emt 0:01:41]} 62. Rd2 {[%emt 0:01:19]} Qb6 {
[%emt 0:00:24]} 63. Kg1 {[%emt 0:02:24]} Qb1+ {[%emt 0:03:05]} 64. Kg2 {
[%emt 0:00:33]} Qe4+ {[%emt 0:01:06]} 65. Kh2 {[%emt 0:00:08]} Qe1 {[%emt 0:00:
46]} 66. Ra2 {[%emt 0:03:42]} Qf1 {[%emt 0:01:28]} 67. Re7 {[%emt 0:00:55]} Qc4
{[%emt 0:01:47]} 68. Raa7 {[%emt 0:00:47]} Kh5 {[%emt 0:03:27]} 69. f3 {
[%emt 0:00:44]} g5 {[%emt 0:01:05]} 70. Rh7+ {[%emt 0:00:57]} Kg6 {[%emt 0:00:
01]} 71. Rag7+ {[%emt 0:00:34]} Kf6 {[%emt 0:00:01]} 72. hxg5+ {[%emt 0:00:17]}
Ke5 {[%emt 0:00:06]} 73. Re7+ {[%emt 0:00:06]} Kd4 {[%emt 0:00:06]} 74. Rh4+ {
[%emt 0:00:05]} 1-0

[Event "23rd ETCC Women 2021"]
[Site "Catez"]
[Date "2021.11.19"]
[Round "6.7"]
[White "Kiolbasa, Oliwia"]
[Black "Arabidze, Meri"]
[Result "1/2-1/2"]
[ECO "B80"]
[WhiteElo "2403"]
[BlackElo "2441"]
[Annotator "ChessBase"]
[PlyCount "96"]
[EventDate "2021.11.08"]
[EventType "team-tourn"]
[EventCountry "SLO"]
[WhiteTeam "Poland"]
[BlackTeam "Georgia"]
[WhiteTeamCountry "POL"]
[BlackTeamCountry "GEO"]
[TimeControl "40/5400+30:1800+30"]

1. e4 {[%emt 0:00:04]} c5 {[%emt 0:00:05]} 2. Nf3 {[%emt 0:00:09]} e6 {[%emt 0:
00:05]} 3. d4 {[%emt 0:00:11]} cxd4 {[%emt 0:00:06]} 4. Nxd4 {[%emt 0:00:09]}
Nf6 {[%emt 0:00:07]} 5. Nc3 {[%emt 0:00:11]} d6 {[%emt 0:00:07]} 6. g3 {
[%emt 0:06:20]} Nc6 {[%emt 0:03:34]} 7. Bg2 {[%emt 0:00:42]} Bd7 {[%emt 0:01:
22]} 8. Ndb5 {[%emt 0:06:44]} Qb8 {[%emt 0:04:52]} 9. Bg5 {[%emt 0:00:53]} a6 {
[%emt 0:04:44]} 10. Bxf6 {[%emt 0:00:48]} gxf6 {[%emt 0:02:09]} 11. Nd4 {
[%emt 0:00:31]} Qa7 {[%emt 0:00:57]} 12. Nb3 {[%emt 0:06:23]} Ne5 {[%emt 0:05:
16]} 13. a4 {[%emt 0:11:31]} Rc8 {[%emt 0:09:55]} 14. Nd2 {[%emt 0:01:30]} h5 {
[%emt 0:05:29]} 15. Qe2 {[%emt 0:09:57]} Qb6 {[%emt 0:05:05]} 16. Ra2 {[%emt 0:
05:46]} Qc5 {[%emt 0:08:51]} 17. f4 {[%emt 0:04:00]} Ng4 {[%emt 0:07:31]} 18.
Nb3 {[%emt 0:10:56]} Qa7 {[%emt 0:07:43]} 19. Bf3 {[%emt 0:01:07]} Ne3 {
[%emt 0:07:02]} 20. Qf2 {[%emt 0:01:08]} Ra8 {[%emt 0:00:46]} 21. Nd1 {[%emt 0:
15:16]} Nxd1 {[%emt 0:02:29]} 22. Qxa7 {[%emt 0:00:04]} Rxa7 {[%emt 0:00:06]}
23. Kxd1 {[%emt 0:00:05]} h4 {[%emt 0:00:12]} 24. Nd2 {[%emt 0:00:13]} Bc6 {
[%emt 0:02:23]} 25. Ke2 {[%emt 0:02:27]} hxg3 {[%emt 0:03:20]} 26. hxg3 {
[%emt 0:00:11]} Rxh1 {[%emt 0:00:13]} 27. Bxh1 {[%emt 0:00:07]} f5 {[%emt 0:00:
05]} 28. Ra1 {[%emt 0:02:14]} fxe4 {[%emt 0:00:30]} 29. Bxe4 {[%emt 0:00:30]}
d5 {[%emt 0:01:30]} 30. Bd3 {[%emt 0:01:55]} Bg7 {[%emt 0:03:10]} 31. c3 {
[%emt 0:00:50]} Ra8 {[%emt 0:00:58]} 32. Nf3 {[%emt 0:01:39]} Ke7 {[%emt 0:01:
21]} 33. a5 {[%emt 0:06:06]} Rh8 {[%emt 0:00:41]} 34. Kd2 {[%emt 0:00:55]} d4 {
[%emt 0:11:02]} 35. Nxd4 {[%emt 0:01:29]} Bxd4 {[%emt 0:00:09]} 36. cxd4 {
[%emt 0:00:04]} Rh2+ {[%emt 0:00:05]} 37. Kc3 {[%emt 0:03:24]} Rg2 {[%emt 0:00:
27]} 38. f5 {[%emt 0:00:49]} Rxg3 {[%emt 0:00:28]} 39. Kc2 {[%emt 0:00:23]}
exf5 {[%emt 0:03:41]} 40. Bxf5 {[%emt 0:00:49]} Rf3 {[%emt 0:01:00]} 41. Bd3 {
[%emt 0:05:11]} Kd6 {[%emt 0:01:28]} 42. Re1 {[%emt 0:05:03]} f5 {[%emt 0:04:
35]} 43. Re5 {[%emt 0:02:01]} f4 {[%emt 0:00:44]} 44. Bc4 {[%emt 0:03:26]} Bd7
{[%emt 0:07:27]} 45. Rd5+ {[%emt 0:05:22]} Ke7 {[%emt 0:00:21]} 46. Re5+ {
[%emt 0:00:04]} Kd6 {[%emt 0:11:35]} 47. Rd5+ {[%emt 0:08:01]} Ke7 {[%emt 0:00:
06]} 48. Re5+ {[%emt 0:01:49]} Kd6 {[%emt 0:00:08]} 1/2-1/2

[Event "23rd ETCC Women 2021"]
[Site "Catez"]
[Date "2021.11.19"]
[Round "6.9"]
[White "Brunello, Marina"]
[Black "Mammadzada, Gunay"]
[Result "1/2-1/2"]
[ECO "B52"]
[WhiteElo "2359"]
[BlackElo "2459"]
[Annotator "ChessBase"]
[PlyCount "71"]
[EventDate "2021.11.08"]
[EventType "team-tourn"]
[EventCountry "SLO"]
[WhiteTeam "Italy"]
[BlackTeam "Azerbaijan"]
[WhiteTeamCountry "ITA"]
[BlackTeamCountry "AZE"]
[TimeControl "40/5400+30:1800+30"]

1. e4 {[%emt 0:00:10]} c5 {[%emt 0:00:07]} 2. Nf3 {[%emt 0:00:05]} d6 {[%emt 0:
00:04]} 3. Bb5+ {[%emt 0:00:05]} Bd7 {[%emt 0:00:29]} 4. Bxd7+ {[%emt 0:00:21]}
Qxd7 {[%emt 0:00:05]} 5. O-O {[%emt 0:00:04]} Nf6 {[%emt 0:00:32]} 6. Qe2 {
[%emt 0:00:06]} e6 {[%emt 0:03:44]} 7. c3 {[%emt 0:03:24]} Be7 {[%emt 0:02:39]}
8. d4 {[%emt 0:01:47]} O-O {[%emt 0:16:57]} 9. dxc5 {[%emt 0:06:20]} dxc5 {
[%emt 0:00:22]} 10. e5 {[%emt 0:00:04]} Nd5 {[%emt 0:00:05]} 11. c4 {[%emt 0:
00:14]} Nb6 {[%emt 0:01:27]} 12. Rd1 {[%emt 0:00:43]} Qc7 {[%emt 0:01:04]} 13.
Nc3 {[%emt 0:00:49]} a6 {[%emt 0:09:23]} 14. Bf4 {[%emt 0:16:58]} Nc6 {[%emt 0:
01:53]} 15. Ne4 {[%emt 0:09:01]} Rad8 {[%emt 0:11:08]} 16. h4 {[%emt 0:11:02]}
Rxd1+ {[%emt 0:11:46]} 17. Rxd1 {[%emt 0:00:05]} Rd8 {[%emt 0:00:04]} 18. Nd6 {
[%emt 0:12:19]} Nc8 {[%emt 0:09:18]} 19. Ne4 {[%emt 0:03:50]} Nb6 {[%emt 0:01:
43]} 20. Nd6 {[%emt 0:05:58]} Nc8 {[%emt 0:03:38]} 21. Nxc8 {[%emt 0:04:53]}
Qxc8 {[%emt 0:01:25]} 22. h5 {[%emt 0:00:16]} h6 {[%emt 0:01:27]} 23. g4 {
[%emt 0:02:23]} b5 {[%emt 0:08:02]} 24. b3 {[%emt 0:07:43]} bxc4 {[%emt 0:00:
38]} 25. Rxd8+ {[%emt 0:01:49]} Qxd8 {[%emt 0:00:07]} 26. bxc4 {[%emt 0:00:05]}
Nd4 {[%emt 0:06:34]} 27. Nxd4 {[%emt 0:01:02]} Qxd4 {[%emt 0:03:36]} 28. Bg3 {
[%emt 0:00:46]} Bg5 {[%emt 0:00:09]} 29. Kg2 {[%emt 0:00:44]} Bf4 {[%emt 0:01:
47]} 30. Bxf4 {[%emt 0:02:34]} Qxf4 {[%emt 0:00:01]} 31. f3 {[%emt 0:00:35]}
Qd4 {[%emt 0:00:48]} 32. Kg3 {[%emt 0:00:51]} Kf8 {[%emt 0:03:18]} 33. Qe4 {
[%emt 0:04:37]} Qg1+ {[%emt 0:01:54]} 34. Kh3 {[%emt 0:00:12]} Qh1+ {[%emt 0:
00:22]} 35. Kg3 {[%emt 0:00:04]} Qg1+ {[%emt 0:00:04]} 36. Kh3 {[%emt 0:00:54]}
1/2-1/2

[Event "23rd ETCC Women 2021"]
[Site "Catez"]
[Date "2021.11.19"]
[Round "6.10"]
[White "Mammadova, Gulnar"]
[Black "Zimina, Olga"]
[Result "1/2-1/2"]
[ECO "B15"]
[WhiteElo "2395"]
[BlackElo "2339"]
[Annotator "ChessBase"]
[PlyCount "182"]
[EventDate "2021.11.08"]
[EventType "team-tourn"]
[EventCountry "SLO"]
[WhiteTeam "Azerbaijan"]
[BlackTeam "Italy"]
[WhiteTeamCountry "AZE"]
[BlackTeamCountry "ITA"]
[TimeControl "40/5400+30:1800+30"]

1. e4 {[%emt 0:00:05]} c6 {[%emt 0:00:09]} 2. d4 {[%emt 0:00:14]} d5 {[%emt 0:
00:04]} 3. Nc3 {[%emt 0:00:22]} dxe4 {[%emt 0:00:16]} 4. Nxe4 {[%emt 0:00:16]}
Nf6 {[%emt 0:00:20]} 5. Nxf6+ {[%emt 0:00:12]} exf6 {[%emt 0:00:05]} 6. c3 {
[%emt 0:00:20]} Bd6 {[%emt 0:00:05]} 7. Bd3 {[%emt 0:00:30]} Na6 8. Ne2 {
[%emt 0:01:21]} Nc7 {[%emt 0:00:10]} 9. Qc2 {[%emt 0:02:20]} h5 {[%emt 0:00:46]
} 10. Bd2 {[%emt 0:02:24]} Kf8 {[%emt 0:04:39]} 11. h3 {[%emt 0:06:33]} Nd5 {
[%emt 0:07:47]} 12. O-O-O {[%emt 0:04:11]} b5 {[%emt 0:05:30]} 13. Kb1 {
[%emt 0:04:43]} a5 {[%emt 0:04:43]} 14. Ng3 {[%emt 0:01:42]} h4 {[%emt 0:01:31]
} 15. Ne4 {[%emt 0:04:09]} Be7 {[%emt 0:02:22]} 16. g4 {[%emt 0:10:11]} g6 {
[%emt 0:08:44]} 17. f4 {[%emt 0:04:41]} Kg7 {[%emt 0:00:24]} 18. Rhe1 {[%emt 0:
11:24]} a4 {[%emt 0:02:40]} 19. f5 {[%emt 0:06:08]} g5 {[%emt 0:01:44]} 20. Qc1
{[%emt 0:02:50]} Ba6 {[%emt 0:09:26]} 21. Nc5 {[%emt 0:05:27]} Bd6 {[%emt 0:04:
43]} 22. Be4 {[%emt 0:02:35]} Bg3 {[%emt 0:04:49]} 23. Rf1 {[%emt 0:03:21]} Kh6
{[%emt 0:01:55]} 24. Rf3 {[%emt 0:06:45]} Bd6 {[%emt 0:01:31]} 25. Nxa6 {
[%emt 0:00:30]} Rxa6 {[%emt 0:00:30]} 26. c4 {[%emt 0:04:27]} bxc4 27. Qxc4 {
[%emt 0:00:14]} Qa8 {[%emt 0:02:24]} 28. Bxd5 {[%emt 0:06:11]} cxd5 {[%emt 0:
00:14]} 29. Qe2 {[%emt 0:00:08]} Rb6 {[%emt 0:07:29]} 30. Rc1 {[%emt 0:00:17]}
Rhb8 {[%emt 0:05:41]} 31. Rc2 {[%emt 0:00:06]} Qb7 {[%emt 0:01:46]} 32. Bc1 {
[%emt 0:00:50]} Rb4 {[%emt 0:00:13]} 33. Qf2 {[%emt 0:03:45]} Kg7 {[%emt 0:02:
51]} 34. Rfc3 {[%emt 0:00:11]} Qe7 {[%emt 0:03:30]} 35. Re3 {[%emt 0:04:36]}
Qa7 {[%emt 0:00:09]} 36. Rd3 {[%emt 0:00:07]} Kf8 {[%emt 0:05:24]} 37. Rc6 {
[%emt 0:01:07]} Be5 {[%emt 0:00:23]} 38. Rc2 {[%emt 0:02:47]} Bxd4 {[%emt 0:01:
23]} 39. Be3 {[%emt 0:01:00]} Bxe3 {[%emt 0:05:36]} 40. Qxe3 {[%emt 0:00:15]}
d4 {[%emt 0:04:29]} 41. Qf3 {[%emt 0:04:52]} Qb6 {[%emt 0:01:28]} 42. Qf2 {
[%emt 0:03:28]} Kg7 {[%emt 0:01:09]} 43. Qd2 {[%emt 0:07:06]} Qd6 {[%emt 0:01:
29]} 44. Ka1 {[%emt 0:01:27]} Qe5 {[%emt 0:01:20]} 45. Kb1 {[%emt 0:02:16]} Qe4
{[%emt 0:02:17]} 46. Ka1 {[%emt 0:00:17]} a3 {[%emt 0:13:13]} 47. b3 {[%emt 0:
01:55]} Re8 {[%emt 0:02:17]} 48. Rc1 {[%emt 0:00:17]} Qf4 {[%emt 0:04:37]} 49.
Rd1 {[%emt 0:04:50]} Re3 {[%emt 0:00:49]} 50. Kb1 {[%emt 0:02:04]} Qe4 {
[%emt 0:00:53]} 51. Qc2 {[%emt 0:00:30]} Qf3 {[%emt 0:03:13]} 52. Qd2 {[%emt 0:
01:38]} Rb5 {[%emt 0:04:35]} 53. Rxd4 {[%emt 0:01:29]} Re2 {[%emt 0:02:33]} 54.
Qd3 {[%emt 0:01:22]} Qf2 {[%emt 0:00:33]} 55. Rd2 {[%emt 0:00:17]} Qf1+ {
[%emt 0:00:19]} 56. Rd1 {[%emt 0:03:06]} Qg2 {[%emt 0:00:35]} 57. Rd2 {[%emt 0:
00:20]} Rbe5 {[%emt 0:00:11]} 58. Qc3 {[%emt 0:01:02]} R5e3 {[%emt 0:00:34]}
59. Qxe3 {[%emt 0:00:52]} Qh1+ {[%emt 0:00:45]} 60. Rd1 {[%emt 0:00:04]} Qxd1+
{[%emt 0:00:35]} 61. Rxd1 {[%emt 0:00:04]} Rxe3 {[%emt 0:00:06]} 62. Rh1 {
[%emt 0:00:12]} Re2 {[%emt 0:00:02]} 63. Ka1 {[%emt 0:01:10]} Kf8 {[%emt 0:00:
33]} 64. b4 {[%emt 0:00:20]} Ke7 {[%emt 0:00:05]} 65. b5 {[%emt 0:01:08]} Kd7 {
[%emt 0:00:24]} 66. b6 {[%emt 0:00:12]} Kc8 {[%emt 0:00:38]} 67. Kb1 {[%emt 0:
01:11]} Rb2+ {[%emt 0:00:44]} 68. Ka1 {[%emt 0:00:02]} Rxb6 {[%emt 0:00:49]}
69. Rc1+ {[%emt 0:00:06]} Kd7 {[%emt 0:00:11]} 70. Rc3 {[%emt 0:00:05]} Ra6 {
[%emt 0:00:04]} 71. Rd3+ {[%emt 0:00:45]} Kc6 {[%emt 0:00:09]} 72. Kb1 {
[%emt 0:00:04]} Kc5 {[%emt 0:00:22]} 73. Kc2 {[%emt 0:00:09]} Kc4 {[%emt 0:00:
58]} 74. Kd2 {[%emt 0:00:39]} Ra5 {[%emt 0:01:17]} 75. Kc2 {[%emt 0:01:27]} Ra7
{[%emt 0:01:04]} 76. Kd2 {[%emt 0:00:18]} Ra6 {[%emt 0:00:36]} 77. Kc2 {
[%emt 0:00:05]} Kb4 {[%emt 0:00:16]} 78. Rd4+ {[%emt 0:00:10]} Kc5 {[%emt 0:00:
06]} 79. Rd3 {[%emt 0:00:04]} Ra4 {[%emt 0:00:14]} 80. Kb3 {[%emt 0:01:01]} Ra7
{[%emt 0:00:05]} 81. Kc2 {[%emt 0:00:03]} Kc4 {[%emt 0:00:22]} 82. Kd2 {
[%emt 0:00:17]} Ra4 {[%emt 0:01:41]} 83. Kc2 {[%emt 0:00:14]} Ra8 {[%emt 0:00:
38]} 84. Kd2 {[%emt 0:00:11]} Ra5 {[%emt 0:00:27]} 85. Kc2 {[%emt 0:00:07]} Kb4
{[%emt 0:00:39]} 86. Rd4+ {[%emt 0:00:31]} Kc5 {[%emt 0:00:04]} 87. Rd3 {
[%emt 0:00:04]} Ra4 {[%emt 0:00:56]} 88. Kb3 {[%emt 0:00:14]} Ra7 {[%emt 0:00:
32]} 89. Kc2 {[%emt 0:00:04]} Kc6 {[%emt 0:00:15]} 90. Kb3 {[%emt 0:00:15]} Kc5
{[%emt 0:00:40]} 91. Kc2 {[%emt 0:00:08]} Ra4 {[%emt 0:00:38]} 1/2-1/2

[Event "23rd ETCC Women 2021"]
[Site "Catez"]
[Date "2021.11.19"]
[Round "6.17"]
[White "Paehtz, Elisabeth"]
[Black "Lazarne Vajda, Szidonia"]
[Result "1-0"]
[ECO "B11"]
[WhiteElo "2485"]
[BlackElo "2345"]
[Annotator "ChessBase"]
[PlyCount "73"]
[EventDate "2021.11.08"]
[EventType "team-tourn"]
[EventCountry "SLO"]
[WhiteTeam "Germany"]
[BlackTeam "Hungary"]
[WhiteTeamCountry "GER"]
[BlackTeamCountry "HUN"]
[TimeControl "40/5400+30:1800+30"]

1. e4 {[%emt 0:00:03]} c6 {[%emt 0:00:50]} 2. Nf3 {[%emt 0:01:01]} d5 {[%emt 0:
01:07]} 3. Nc3 {[%emt 0:00:04]} dxe4 {[%emt 0:02:42]} 4. Nxe4 {[%emt 0:00:04]}
Nf6 {[%emt 0:00:41]} 5. Qe2 {[%emt 0:00:05]} Nxe4 {[%emt 0:03:16]} 6. Qxe4 {
[%emt 0:00:08]} Qa5 {[%emt 0:01:30]} 7. Bd3 {[%emt 0:00:41]} e6 {[%emt 0:08:56]
} 8. O-O {[%emt 0:03:40]} Nd7 {[%emt 0:01:50]} 9. Re1 {[%emt 0:13:57]} Be7 {
[%emt 0:06:36]} 10. Bf1 {[%emt 0:15:12]} Qd5 {[%emt 0:06:37]} 11. Qe3 {[%emt 0:
03:24]} O-O {[%emt 0:10:20]} 12. c4 {[%emt 0:03:54]} Qd6 {[%emt 0:01:33]} 13.
d4 {[%emt 0:00:12]} Rd8 {[%emt 0:09:24]} 14. Bd2 {[%emt 0:06:48]} Nf8 {[%emt 0:
01:26]} 15. Rad1 {[%emt 0:01:37]} Bf6 {[%emt 0:01:09]} 16. Qe4 {[%emt 0:06:28]}
Bd7 {[%emt 0:10:23]} 17. Bf4 {[%emt 0:03:20]} Qe7 {[%emt 0:07:35]} 18. Qe3 {
[%emt 0:05:48]} Be8 {[%emt 0:01:06]} 19. Qb3 {[%emt 0:01:18]} b6 {[%emt 0:02:
14]} 20. Bg3 {[%emt 0:02:55]} c5 {[%emt 0:03:21]} 21. d5 {[%emt 0:00:59]} Qb7 {
[%emt 0:01:31]} 22. Bd3 {[%emt 0:04:39]} exd5 {[%emt 0:00:29]} 23. cxd5 {
[%emt 0:00:04]} Rac8 {[%emt 0:02:14]} 24. Ne5 {[%emt 0:07:32]} Bxe5 {[%emt 0:
01:14]} 25. Bxe5 {[%emt 0:00:02]} Ng6 {[%emt 0:01:17]} 26. Bf5 {[%emt 0:01:35]}
Ra8 {[%emt 0:04:22]} 27. Bg3 {[%emt 0:01:17]} b5 {[%emt 0:03:07]} 28. h4 {
[%emt 0:02:43]} c4 {[%emt 0:01:00]} 29. Qc2 {[%emt 0:03:07]} Nf8 {[%emt 0:00:
44]} 30. d6 {[%emt 0:01:26]} Bc6 {[%emt 0:01:56]} 31. Re7 {[%emt 0:00:12]} Qb6
{[%emt 0:00:47]} 32. h5 {[%emt 0:01:29]} g6 {[%emt 0:01:27]} 33. h6 {[%emt 0:
01:18]} Qa5 {[%emt 0:01:34]} 34. Be4 {[%emt 0:02:41]} Rac8 {[%emt 0:02:29]} 35.
Bxc6 {[%emt 0:00:05]} Rxc6 {[%emt 0:00:02]} 36. Qe4 {[%emt 0:00:05]} Rcc8 {
[%emt 0:00:58]} 37. Qd4 {[%emt 0:00:24]} 1-0